bitfinex/quotes_ETHUSD_20240730
["timestamp","ask_amount","ask_price","bid_price","bid_amount"]
[1722361544093,0.1433062,3305.4,3305.3,50.76476901]
[1722361544309,0.1433062,3305.4,3305.3,50.70427005]
[1722361547145,0.1433062,3305.4,3305.3,47.67883005]
[1722361547807,0.1433062,3305.4,3305.3,50.70427005]
[1722361549346,0.1433062,3305.4,3305.3,53.72971005]
[1722361549548,0.1433062,3305.4,3305.3,50.70427005]
[1722361549750,0.1433062,3305.4,3305.3,53.72971005]
[1722361550740,0.1433062,3305.4,3305.3,50.70427005]
[1722361551700,0.1433062,3305.4,3305.3,53.72971005]
[1722361552142,6.2e-06,3305.4,3305.3,53.72971005]
[1722361552346,3.02375,3307.2,3306.7,3.02411]
[1722361552347,3.02372,3307.2,3306.7,3.02411]
[1722361552530,2.4758,3307.3,3306.7,3.02411]
[1722361552843,5.49942,3307.3,3306.7,3.02407]
[1722361553058,2.4758,3307.3,3307.0,3.02384]
[1722361553196,3.02354,3307.4,3306.8,38.08453754]
[1722361553402,3.04314007,3307.4,3306.8,41.10854754]
[1722361553907,3.04314007,3307.4,3306.8,38.08448754]
[1722361554447,3.04314007,3307.4,3306.8,41.10849754]
[1722361554599,3.04314007,3307.4,3306.8,38.08448754]
[1722361554801,3.02371,3307.2,3306.8,35.0]
[1722361555142,5.51698,3307.4,3306.8,38.02401]
[1722361555345,7.39,3307.8,3307.0,3.02384]
[1722361555346,12.78991,3307.8,3307.0,3.02384]
[1722361555518,3.02349,3307.5,3307.0,3.02384]
[1722361556015,3.02357,3307.4,3306.9,3.08444664]
[1722361556418,6.04699,3307.5,3306.9,3.08444664]
[1722361556624,3.02352,3307.4,3306.9,3.08444664]
[1722361557324,3.02334,3307.6,3307.0,3.02388]
[1722361557325,3.02343,3307.5,3307.0,3.02388]
[1722361557818,12.78991,3307.8,3307.2,3.02369]
[1722361558028,9.7667,3307.8,3307.2,3.02369]
[1722361558233,2.3767,3307.8,3307.3,3.0236]
[1722361558432,7.39,3308.2,3307.5,3.02336]
[1722361558433,5.40238,3308.1,3307.5,3.02336]
[1722361558634,3.02303,3308.0,3307.4,3.02347]
[1722361558836,3.02303,3308.0,3307.5,0.0604622]
[1722361559036,2.3795,3308.1,3307.3,0.0604622]
[1722361559239,3.023,3308.0,3307.3,0.0604622]
[1722361559441,2.39910007,3308.1,3307.3,0.06046289]
[1722361559643,3.02298,3308.0,3307.5,3.02342]
[1722361560008,3.02298,3308.0,3307.3,3.04901288]
[1722361560009,2.72298,3308.0,3307.4,3.0839822]
[1722361560207,0.01960007,3307.9,3307.2,35.0]
[1722361560405,3.02321,3307.8,3307.2,3.0237]
[1722361560712,3.02321,3307.8,3307.2,3.02366]
[1722361560945,3.02321,3307.8,3306.9,7.96085566]
[1722361560946,3.02331,3307.7,3307.1,6.04746]
[1722361561152,3.02331,3307.7,3307.1,7.44829157]
[1722361561334,3.02331,3307.7,3307.1,7.44830157]
[1722361561642,3.02302,3308.0,3307.1,4.42456157]
[1722361561869,5.32118,3307.5,3307.1,1.40083157]
[1722361562147,5.32118,3307.5,3307.0,3.02384]
[1722361562553,5.32118,3307.5,3306.9,7.96085566]
[1722361562554,3.02385,3307.1,3306.9,7.35]
[1722361562847,2.2977,3307.5,3306.2,3.02454]
[1722361562848,3.02413,3306.8,3306.2,3.02454]
[1722361563048,2.4774,3306.9,3306.3,1.037454]
[1722361563357,2.4774,3307.3,3306.9,3.02393]
[1722361563651,2.4774,3307.7,3307.4,3.0235]
[1722361563873,7.39,3307.9,3307.3,3.02353]
[1722361564164,3.02315,3307.8,3307.3,6.04708]
[1722361564313,10.41307,3307.9,3307.4,3.02347]
[1722361564509,7.39,3307.9,3307.5,3.0838762]
[1722361564855,7.39,3307.9,3307.3,0.604708]
[1722361565155,10.41307,3307.9,3307.4,3.08396375]
[1722361565450,7.39,3307.9,3307.5,35.0]
[1722361565684,3.02315,3307.8,3307.5,35.0]
[1722361566182,10.41307,3307.9,3307.5,35.0]
[1722361566342,7.39,3307.9,3307.5,38.04901288]
[1722361566542,3.02279,3308.2,3307.6,3.08379196]
[1722361566772,3.02279,3308.2,3307.7,3.02319]
[1722361567049,3.02298,3308.0,3307.5,38.04901288]
[1722361567287,0.01960007,3308.3,3307.6,3.08370907]
[1722361567288,3.02279,3308.2,3307.6,3.08370907]
[1722361567448,3.02279,3308.2,3307.7,1.65642933]
[1722361567975,3.02288,3308.1,3307.7,1.65642933]
[1722361568295,3.02276,3308.3,3307.7,4.67966933]
[1722361568592,3.02279,3308.2,3307.7,4.74012791]
[1722361568942,5.45221,3308.4,3307.8,0.06045858]
[1722361569193,3.02289,3308.1,3307.7,1.65642933]
[1722361569426,3.02289,3308.1,3307.6,3.02332]
[1722361569544,3.0228,3308.2,3307.7,3.02324]
[1722361569744,3.0228,3308.2,3307.7,3.02317]
[1722361571158,3.02302,3308.0,3307.5,41.07237288]
[1722361571372,3.02302,3308.0,3307.5,6.07237288]
[1722361571685,3.02302,3308.0,3307.5,3.02336]
[1722361572455,3.02285,3308.2,3307.6,3.02328]
[1722361572972,3.02289,3308.1,3307.6,3.02328]
[1722361573759,3.02294,3308.1,3307.4,38.02352]
[1722361573960,3.0233,3307.7,3307.2,3.0237]
[1722361574175,5.34346,3307.7,3307.3,0.06046562]
[1722361574373,5.34346,3307.7,3307.2,3.02364]
[1722361574572,3.02312,3307.9,3307.2,3.02364]
[1722361574759,3.02312,3307.9,3307.4,3.02347]
[1722361575061,5.47173,3308.0,3307.5,3.0234]
[1722361575279,5.49133007,3308.0,3307.5,3.0234]
[1722361575448,5.47173,3308.0,3307.5,3.0234]
[1722361575649,5.47173,3308.0,3307.5,3.02337]
[1722361576358,2.4487,3308.0,3307.6,3.02327]
[1722361576557,5.47168,3308.0,3307.4,3.4295214]
[1722361576787,3.02315,3307.8,3307.4,0.4060914]
[1722361577103,5.47168,3308.0,3307.4,3.02349]
[1722361577595,3.02313,3307.9,3307.4,6.04695]
[1722361577796,2.4487,3308.0,3307.4,3.02346]
[1722361577981,3.02283,3308.2,3307.6,3.02329]
[1722361578794,3.0229,3308.1,3307.4,3.02346]
[1722361579008,3.0229,3308.1,3307.6,3.02333]
[1722361579570,0.01960007,3308.1,3307.8,3.0231]
[1722361579789,3.02299,3308.0,3307.5,3.08383055]
[1722361580002,3.02299,3308.0,3307.5,3.02337]
[1722361580203,3.02299,3308.0,3307.5,6.07238288]
[1722361580401,3.02287,3308.2,3307.6,3.0837197]
[1722361580748,3.04247007,3308.2,3307.6,3.02326]
[1722361580917,0.01960007,3308.2,3307.6,3.08371909]
[1722361581073,3.02279,3308.2,3307.7,3.02316]
[1722361581418,2.2698,3308.4,3307.8,0.06045909]
[1722361581720,2.2698,3308.4,3308.0,3.02296]
[1722361582013,5.29242,3308.4,3308.0,3.08341324]
[1722361582311,3.02262,3308.4,3308.0,3.08341324]
[1722361582510,6.04497,3308.6,3308.0,3.08341324]
[1722361582816,3.02252,3308.5,3308.0,3.08336324]
[1722361582973,3.02261,3308.4,3307.9,3.02302]
[1722361583309,3.02248,3308.6,3307.9,3.023]
[1722361583515,0.01960007,3308.6,3308.1,3.02283]
[1722361583721,0.1433062,3308.7,3308.4,3.0226]
[1722361583922,0.1433062,3308.7,3308.5,3.02251]
[1722361584214,0.1433062,3308.7,3308.2,0.06045327]
[1722361584415,0.1433062,3308.7,3308.5,3.02246]
[1722361584583,0.1433062,3308.7,3308.6,3.02242]
[1722361584785,0.1433062,3308.7,3308.5,3.02247]
[1722361585179,0.1433062,3308.7,3308.6,3.08286475]
[1722361586137,0.1433062,3308.7,3308.6,38.08286475]
[1722361586429,0.1433062,3308.7,3308.2,3.02272]
[1722361586639,0.16290627,3308.7,3308.2,3.02272]
[1722361586930,0.16290627,3308.7,3308.3,38.02269]
[1722361586931,0.1433062,3308.7,3308.3,38.02269]
[1722361587284,0.1433062,3308.7,3308.5,3.0225]
[1722361587787,0.1433062,3308.7,3308.6,3.08286883]
[1722361588131,0.1433062,3308.7,3308.6,3.02242]
[1722361588570,0.1433062,3308.7,3308.6,6.347082]
[1722361589268,0.1433062,3308.7,3308.6,41.347082]
[1722361590267,0.1433062,3308.7,3308.6,35.302242]
[1722361590482,0.1433062,3308.7,3308.6,35.0]
[1722361590759,0.1433062,3308.7,3308.6,41.04484]
[1722361592023,0.1433062,3308.7,3308.6,38.02242]
[1722361592670,0.1433062,3308.7,3308.6,41.04484]
[1722361593025,0.1433062,3308.7,3308.6,38.02242]
[1722361593377,0.1433062,3308.7,3308.6,41.07143288]
[1722361593981,0.1433062,3308.7,3308.5,3.02244]
[1722361593982,3.1656562,3308.7,3308.2,0.30228]
[1722361594123,3.18525627,3308.7,3307.7,3.02321]
[1722361594326,3.18525627,3308.7,3308.6,3.02242]
[1722361594327,0.1433062,3308.7,3308.6,3.02242]
[1722361594525,0.1433062,3308.7,3308.6,6.347082]
[1722361594960,0.1433062,3308.7,3308.6,9.369502]
[1722361595464,0.1433062,3308.7,3308.6,12.369502]
[1722361597928,0.1433062,3308.7,3308.6,15.391922]
[1722361598123,0.1433062,3308.7,3308.6,53.300522]
[1722361599570,0.1433062,3308.7,3308.6,56.626942]
[1722361599571,6.2e-06,3308.7,3308.6,56.626942]
[1722361600669,3.02078,3310.4,3309.9,3.02123]
[1722361600839,3.02088,3310.3,3309.8,3.02132]
[1722361601040,5.34889,3310.5,3310.0,3.02109]
[1722361601241,2.3282,3310.5,3310.1,3.02105]
[1722361601442,3.02092,3310.3,3309.7,3.02136]
[1722361601674,3.02096,3310.2,3309.7,6.04272]
[1722361601829,3.02117,3310.0,3309.8,35.0]
[1722361602030,2.2887,3309.9,3309.8,35.0]
[1722361602678,5.30993,3309.9,3309.8,35.0]
[1722361603378,2.2887,3309.9,3309.4,6.04331]
[1722361603534,2.2887,3309.9,3309.5,0.604331]
[1722361603728,2.2887,3309.9,3309.5,35.0]
[1722361603973,0.01960007,3309.8,3309.0,3.0]
[1722361604141,3.02172,3309.4,3308.8,3.0222]
[1722361604474,0.01960007,3309.8,3309.2,3.02182]
[1722361604475,3.04099007,3309.8,3309.2,3.02182]
[1722361604680,3.04099007,3309.8,3309.3,3.02178]
[1722361604885,3.02165,3309.5,3308.9,38.02209]
[1722361605052,3.02169,3309.4,3308.9,38.02209]
[1722361605249,3.02169,3309.4,3308.9,41.07110288]
[1722361605468,3.02192,3309.2,3308.9,3.04901288]
[1722361605645,3.02192,3309.2,3308.1,17.73915]
[1722361605646,3.04138007,3309.3,3308.8,3.02222]
[1722361605849,3.04138007,3309.3,3308.7,3.02228]
[1722361605850,2.30830007,3309.4,3308.9,3.02214]
[1722361606049,2.2887,3309.7,3309.3,3.02176]
[1722361606238,2.2887,3309.7,3309.0,38.02201]
[1722361606439,2.2887,3310.1,3309.1,0.06042837]
[1722361606654,5.3098,3310.1,3309.6,3.02146]
[1722361606853,2.2887,3310.1,3309.6,3.02145]
[1722361607086,2.2887,3310.1,3309.7,0.06042582]
[1722361607276,2.2887,3310.5,3309.8,3.02132]
[1722361607477,5.30939,3310.5,3310.0,3.02114]
[1722361608335,3.02081,3310.4,3309.8,3.02124]
[1722361608536,5.30939,3310.5,3309.6,3.02146]
[1722361608537,3.0211,3310.1,3309.6,3.02146]
[1722361608747,3.02119,3310.0,3309.5,3.02159]
[1722361608978,3.02119,3310.0,3309.5,3.625886]
[1722361609287,2.3888,3309.9,3309.5,3.625886]
[1722361609589,2.3888,3309.9,3309.7,3.02137]
[1722361609785,2.3888,3309.9,3309.5,3.02153]
[1722361609993,2.3888,3309.9,3309.4,3.02166]
[1722361610200,2.3888,3309.9,3309.5,3.02158]
[1722361610484,5.41004,3309.9,3309.4,3.02169]
[1722361610689,3.02138,3309.8,3309.3,3.02178]
[1722361610928,3.02138,3309.8,3309.3,3.62886229]
[1722361611133,2.3888,3309.9,3309.5,3.02157]
[1722361611284,2.3888,3309.9,3309.5,3.02153]
[1722361611484,2.3888,3309.9,3309.4,3.02162]
[1722361611866,2.3888,3309.9,3309.5,0.36287023]
[1722361611977,2.3888,3309.9,3309.6,3.02145]
[1722361612717,2.3888,3309.9,3309.5,0.36287023]
[1722361612884,2.3888,3309.9,3309.4,6.04326]
[1722361613429,2.3888,3309.9,3309.4,3.02163]
[1722361613732,2.3888,3309.9,3309.7,3.0214]
[1722361613928,2.4364,3310.2,3309.6,3.02142]
[1722361614136,5.45737,3310.2,3309.7,3.02141]
[1722361614630,2.4364,3310.2,3309.9,3.02122]
[1722361615047,2.4364,3310.2,3310.0,3.02113]
[1722361615248,2.4364,3310.2,3310.1,3.02105]
[1722361615381,2.4364,3310.2,3309.6,0.30818483]
[1722361615382,2.4364,3310.2,3310.0,3.02114]
[1722361615733,2.4364,3310.2,3309.9,3.02123]
[1722361616031,3.04071007,3310.1,3309.3,0.60708229]
[1722361616243,3.02124,3309.9,3309.3,3.02178]
[1722361616382,0.01960007,3309.9,3309.6,3.0215]
[1722361617399,0.01960007,3310.0,3309.6,3.0215]
[1722361617804,0.01960007,3310.0,3309.5,3.02159]
[1722361618017,3.04079007,3310.0,3309.5,3.02159]
[1722361618289,2.419,3309.7,3309.3,3.02173]
[1722361618554,2.43860007,3309.7,3309.3,3.02173]
[1722361619060,2.43860007,3309.7,3309.1,41.02191]
[1722361619061,5.46007007,3309.7,3309.1,38.0]
[1722361619365,5.46007007,3309.7,3309.2,6.07084288]
[1722361619366,2.43860007,3309.7,3309.2,6.07084288]
[1722361619577,2.43860007,3309.7,3309.3,3.02174]
[1722361619796,2.419,3309.7,3309.5,3.02155]
[1722361619919,3.02063,3310.6,3309.6,3.323665]
[1722361619920,5.45969007,3310.1,3309.6,3.323665]
[1722361620117,5.45969007,3310.1,3309.6,3.02151]
[1722361620350,2.43860007,3310.1,3309.4,3.02162]
[1722361620622,3.02124,3309.9,3309.5,3.0216]
[1722361620838,3.04084007,3309.9,3309.5,3.0216]
[1722361621618,3.04084007,3309.9,3309.3,3.02178]
[1722361621819,3.02133,3309.8,3309.3,6.01805633]
[1722361622046,3.04093007,3309.8,3309.3,3.02171]
[1722361622246,3.02133,3309.8,3309.3,38.02171]
[1722361622679,3.02115,3310.0,3309.5,3.02154]
[1722361622839,3.02115,3310.0,3309.6,3.0215]
[1722361623029,3.02115,3310.0,3309.5,3.02159]
[1722361623441,0.01960007,3309.9,3309.3,38.02172]
[1722361623620,3.02166,3309.5,3308.4,2.55465967]
[1722361623824,0.01960007,3309.5,3308.4,2.4017]
[1722361624019,2.3789,3309.6,3309.2,3.02183]
[1722361624325,10.4112,3310.0,3309.6,3.02145]
[1722361624326,2.3789,3310.0,3309.6,3.02145]
[1722361624523,10.41088,3310.3,3309.8,3.02127]
[1722361624748,5.39978,3310.3,3309.8,3.02127]
[1722361625042,2.3789,3310.3,3309.8,3.02128]
[1722361625244,5.39977,3310.3,3309.8,3.02128]
[1722361625538,5.39977,3310.3,3309.8,3.02126]
[1722361625727,5.39977,3310.3,3309.8,6.04254]
[1722361625929,2.3789,3310.3,3309.9,3.0212]
[1722361626462,5.3998,3310.3,3309.9,3.0212]
[1722361626658,2.3789,3310.3,3309.9,3.0212]
[1722361627029,2.3789,3310.3,3310.1,3.02099]
[1722361627529,2.3789,3310.3,3309.9,3.02115]
[1722361628063,2.3789,3310.3,3309.9,35.0]
[1722361628242,2.3789,3310.3,3309.9,3.02123]
[1722361628632,2.3789,3310.3,3309.9,3.02118]
[1722361629384,2.3789,3310.3,3310.2,3.02096]
[1722361629525,2.3789,3310.3,3310.1,3.02105]
[1722361629964,12.89582,3310.7,3310.2,3.02096]
[1722361630205,9.8753,3310.7,3310.3,3.02087]
[1722361630860,9.8753,3310.7,3310.2,3.02096]
[1722361631179,9.8753,3310.7,3310.1,3.02105]
[1722361631180,3.04024007,3310.6,3310.1,3.02105]
[1722361631519,3.04024007,3310.6,3310.0,6.01741633]
[1722361631722,3.02078,3310.4,3310.0,2.99627633]
[1722361632008,2.3265,3310.2,3309.8,41.0426]
[1722361632209,2.3265,3310.2,3309.8,38.02128]
[1722361632376,3.02078,3310.4,3309.8,38.02128]
[1722361632570,2.3265,3311.4,3310.0,2.4867]
[1722361632774,3.02033,3310.9,3310.0,5.4867]
[1722361632962,2.34610007,3310.8,3310.2,3.02094]
[1722361633170,2.3265,3310.8,3310.0,3.0]
[1722361633407,5.34691,3310.8,3310.3,3.02082]
[1722361633659,3.02051,3310.7,3310.1,3.62595129]
[1722361633801,5.34691,3310.8,3310.2,3.68354513]
[1722361634006,2.3265,3310.8,3310.4,3.02077]
[1722361634207,2.3265,3310.8,3310.5,3.02067]
[1722361634741,2.3265,3310.8,3310.3,3.0208]
[1722361635051,2.3265,3310.8,3310.5,3.02065]
[1722361635217,2.3265,3310.8,3310.2,0.72300718]
[1722361635552,2.3482,3311.1,3310.6,3.02057]
[1722361635758,2.3482,3311.1,3310.6,6.04111]
[1722361636160,2.3482,3311.1,3310.5,3.02064]
[1722361636449,2.3482,3311.1,3310.7,3.02044]
[1722361636606,3.02035,3310.9,3310.4,3.02073]
[1722361636810,7.39,3311.4,3310.2,3.02091]
[1722361636811,3.02055,3310.7,3310.2,3.02091]
[1722361637036,0.01960007,3310.6,3310.2,3.02093]
[1722361637245,0.01960007,3310.6,3309.8,35.0]
[1722361637440,3.02104,3310.2,3309.6,3.02151]
[1722361637643,3.02103,3310.2,3309.6,3.02144]
[1722361637852,5.41191,3310.0,3309.4,7.35]
[1722361638081,3.02069,3310.5,3309.5,2.4043]
[1722361638082,0.01960007,3310.4,3309.5,2.4043]
[1722361638214,2.3907,3310.6,3310.0,3.0211]
[1722361638411,2.3907,3310.6,3310.2,3.0209]
[1722361638844,2.3907,3310.6,3310.2,3.02096]
[1722361639117,2.3907,3310.6,3310.3,3.02085]
[1722361639344,2.3907,3310.6,3310.3,3.02081]
[1722361640121,2.3907,3310.6,3310.4,3.02071]
[1722361640466,5.44392,3310.9,3310.4,3.02071]
[1722361640647,2.44320007,3310.9,3310.2,3.0209]
[1722361640830,0.01960007,3310.8,3310.2,3.0209]
[1722361641024,2.4236,3310.9,3310.5,3.02063]
[1722361641236,2.4236,3310.9,3310.6,3.02059]
[1722361641622,5.29136,3311.3,3310.6,3.02059]
[1722361641827,3.03965007,3311.2,3310.6,3.02054]
[1722361642027,3.03965007,3311.2,3310.6,6.04108]
[1722361642234,3.03965007,3311.2,3310.6,3.02054]
[1722361642518,0.01960007,3311.2,3310.7,3.02046]
[1722361642719,5.2914,3311.3,3310.8,3.0204]
[1722361642919,2.2714,3311.3,3310.8,3.02035]
[1722361643135,2.2714,3311.3,3310.9,3.02024]
[1722361643335,2.2714,3311.3,3310.7,35.0]
[1722361643560,3.02006,3311.2,3310.7,35.0]
[1722361643761,3.03966007,3311.2,3310.7,35.0]
[1722361643964,3.02029,3311.0,3309.7,3.0]
[1722361644131,3.02047,3310.8,3310.2,3.02088]
[1722361644339,3.02047,3310.8,3310.3,3.02085]
[1722361644662,2.4483,3310.6,3310.1,3.02099]
[1722361644893,2.4483,3310.6,3310.2,0.302099]
[1722361645068,2.4483,3310.6,3309.7,3.0]
[1722361645263,2.4483,3310.6,3309.6,5.4314]
[1722361645566,3.0207,3310.5,3310.0,3.02108]
[1722361645722,2.46790007,3310.6,3309.9,3.0212]
[1722361645723,3.02078,3310.4,3309.9,3.0212]
[1722361645925,5.48851007,3310.6,3309.6,5.4314]
[1722361645926,2.46790007,3310.6,3309.6,5.4314]
[1722361646165,3.02115,3310.0,3309.5,7.35]
[1722361646365,0.01960007,3310.1,3309.5,3.02157]
[1722361646567,0.01960007,3310.1,3309.7,3.02137]
[1722361646861,0.01960007,3310.1,3309.2,3.02184]
[1722361646862,0.01960007,3310.1,3309.6,3.02142]
[1722361647019,3.04066007,3310.1,3309.6,3.02142]
[1722361647219,3.02115,3310.0,3309.3,0.529184]
[1722361647439,3.02143,3309.7,3309.1,3.02191]
[1722361647634,0.01960007,3310.0,3309.3,3.02172]
[1722361647635,2.3212,3309.9,3309.3,3.02172]
[1722361647967,2.3212,3309.9,3309.5,3.02153]
[1722361648121,2.3212,3309.9,3309.3,3.02173]
[1722361648122,5.34248,3309.9,3309.3,3.02173]
[1722361648321,5.34248,3309.9,3308.7,2.3648]
[1722361648322,3.02138,3309.8,3308.7,2.3648]
[1722361648564,2.3212,3309.9,3309.6,3.0215]
[1722361648813,3.02088,3310.3,3309.7,3.02138]
[1722361648969,2.3212,3310.4,3309.8,3.02126]
[1722361649172,5.34206,3310.4,3309.9,3.02123]
[1722361649379,2.34080007,3310.4,3309.7,3.02136]
[1722361649584,3.02088,3310.3,3309.8,3.02125]
[1722361649817,3.04048007,3310.3,3309.7,3.02141]
[1722361650025,3.04048007,3310.3,3309.2,3.02185]
[1722361650026,3.0212,3310.0,3309.3,3.02172]
[1722361650187,3.0212,3310.0,3309.4,3.0]
[1722361650388,3.02105,3310.1,3309.6,3.02146]
[1722361650584,2.3212,3310.4,3310.1,3.021]
[1722361650784,3.0,3311.1,3310.1,3.021]
[1722361650785,2.4076,3310.8,3310.2,0.06041835]
[1722361651118,3.02019,3311.1,3310.5,3.02068]
[1722361651445,3.03979007,3311.1,3310.6,3.02057]
[1722361651902,3.03979007,3311.1,3310.4,3.02071]
[1722361652101,3.02031,3311.0,3310.4,3.02078]
[1722361652300,0.01960007,3311.0,3310.6,3.02057]
[1722361652508,3.03984007,3311.0,3310.4,0.604168]
[1722361652710,3.02055,3310.7,3310.2,3.02091]
[1722361652930,3.04025007,3310.6,3310.0,3.0211]
[1722361653110,2.548,3311.3,3309.7,3.02141]
[1722361653111,5.44765,3310.4,3309.7,3.02141]
[1722361653312,0.01960007,3310.3,3309.7,3.02141]
[1722361653547,0.01960007,3310.3,3309.4,3.0]
[1722361653548,3.02114,3310.0,3309.5,3.02158]
[1722361653838,3.02138,3309.8,3309.2,0.3]
[1722361654035,3.02142,3309.7,3309.2,3.02187]
[1722361654333,3.04093007,3309.8,3309.2,3.02183]
[1722361654538,0.01960007,3309.8,3309.1,10.3719]
[1722361654839,0.01960007,3309.8,3308.8,3.2587]
[1722361654840,5.31406,3309.5,3308.8,3.25866]
[1722361655045,3.02183,3309.3,3308.9,0.325866]
[1722361655243,3.02183,3309.3,3308.8,3.02223]
[1722361655546,2.2924,3309.5,3308.5,0.304]
[1722361655841,2.2924,3309.5,3309.2,3.0218]
[1722361656045,2.2924,3309.5,3309.3,3.02178]
[1722361656349,2.3443,3310.0,3309.3,0.604358]
[1722361656514,5.36549,3310.0,3309.4,3.02163]
[1722361656718,2.3443,3310.0,3309.6,3.02149]
[1722361657050,3.02083,3310.4,3309.8,3.02128]
[1722361657215,3.02083,3310.4,3309.6,3.02145]
[1722361657216,2.4001,3310.5,3309.6,3.02144]
[1722361657417,2.4001,3310.5,3309.5,0.06042461]
[1722361657418,3.02096,3310.2,3309.5,0.06042461]
[1722361657632,6.04274,3309.8,3309.2,3.02182]
[1722361657846,2.41970007,3309.7,3309.0,3.0]
[1722361658048,5.42121,3310.1,3309.5,3.02154]
[1722361658268,5.42121,3310.1,3309.0,3.022]
[1722361658269,3.02126,3309.9,3309.0,3.022]
[1722361658545,0.01960007,3309.8,3309.3,3.02177]
[1722361658758,3.04098007,3309.8,3309.3,3.02177]
[1722361658920,3.02114,3310.0,3309.5,3.02155]
[1722361659125,3.04074007,3310.0,3309.5,3.02155]
[1722361659336,2.4001,3310.1,3309.5,3.02154]
[1722361659644,2.4001,3310.1,3309.8,3.02127]
[1722361659846,2.4001,3310.1,3309.7,3.02133]
[1722361660270,2.4001,3310.1,3309.8,3.02132]
[1722361660408,2.4001,3310.1,3309.8,3.02128]
[1722361660608,10.39,3310.8,3309.2,3.02185]
[1722361660609,2.4366,3310.6,3310.0,3.02105]
[1722361660863,5.45721,3310.6,3310.0,3.323245]
[1722361661070,2.4366,3310.6,3310.0,3.02114]
[1722361661345,5.45721,3310.6,3310.1,3.02104]
[1722361661773,3.02069,3310.5,3309.9,3.02116]
[1722361661906,3.02069,3310.5,3310.0,3.02114]
[1722361662113,2.4366,3310.6,3310.0,3.02109]
[1722361662308,2.4366,3310.6,3310.2,3.0209]
[1722361663552,3.02083,3310.4,3309.8,6.04251]
[1722361663764,2.4366,3310.6,3309.8,0.634541]
[1722361663943,3.02101,3310.2,3309.5,3.02155]
[1722361664131,3.04073007,3310.1,3309.5,3.02155]
[1722361664329,3.02115,3310.0,3309.5,3.02155]
[1722361664542,0.01960007,3309.9,3309.5,6.04309]
[1722361664741,0.01960007,3310.0,3309.0,3.02203]
[1722361664960,0.01960007,3310.0,3309.6,3.02145]
[1722361665443,3.02093,3310.3,3309.8,3.02125]
[1722361665444,0.01960007,3310.3,3309.8,3.02125]
[1722361665644,3.02097,3310.2,3309.6,3.02145]
[1722361665817,0.01960007,3310.1,3309.5,3.02157]
[1722361666162,0.01960007,3310.1,3309.7,3.0214]
[1722361666457,0.01960007,3310.1,3309.4,3.02163]
[1722361666458,3.02116,3310.0,3309.4,3.02163]
[1722361666663,5.45723,3310.6,3309.3,3.02178]
[1722361666664,3.04089007,3309.9,3309.3,3.02178]
[1722361666819,3.02155,3309.6,3309.1,3.02195]
[1722361667014,3.02155,3309.6,3309.1,3.02191]
[1722361667214,5.48814,3309.8,3309.6,0.05703329]
[1722361667215,3.02142,3309.7,3309.6,0.05703329]
[1722361667488,5.48814,3309.8,3309.6,0.05703329]
[1722361667489,2.4668,3309.8,3309.6,0.05703329]
[1722361668072,5.48815,3309.8,3309.6,0.05703329]
[1722361668357,5.48817,3309.8,3309.6,0.05703329]
[1722361668564,6.3695159,3309.8,3309.6,0.05703329]
[1722361668918,3.3481459,3309.8,3309.6,0.05703329]
[1722361669141,2.4668,3309.8,3309.6,0.05703329]
[1722361669559,5.43161,3310.2,3309.6,3.07846329]
[1722361669774,5.43161,3310.2,3309.6,0.05703329]
[1722361669920,2.4106,3310.2,3309.6,0.05703329]
[1722361670121,2.4106,3310.2,3309.7,6.04271]
[1722361670322,2.4106,3310.2,3309.8,3.02131]
[1722361670952,3.02111,3310.1,3309.6,0.05703329]
[1722361671250,2.4106,3310.2,3310.0,3.02112]
[1722361671451,7.39,3310.3,3310.1,3.02105]
[1722361671682,7.39,3310.3,3309.6,3.07849329]
[1722361671886,7.39,3310.3,3310.1,3.021]
[1722361672068,7.39,3310.3,3309.6,0.05703329]
[1722361672267,7.39,3310.3,3310.0,3.02113]
[1722361672557,7.39,3310.3,3310.1,6.04203]
[1722361672779,7.39,3310.3,3310.1,6.04198]
[1722361673093,7.39,3310.3,3310.2,3.02096]
[1722361673295,2.3307,3310.6,3310.3,3.02086]
[1722361674108,2.3307,3310.6,3310.1,3.02097]
[1722361674409,2.3307,3310.6,3310.3,3.02086]
[1722361674708,2.3307,3310.6,3310.2,3.02096]
[1722361674856,2.3307,3310.6,3310.2,3.02091]
[1722361675047,3.02036,3310.9,3310.4,3.02073]
[1722361675253,2.2695,3311.0,3310.0,5.56906]
[1722361675491,2.2695,3311.0,3310.5,3.02062]
[1722361675706,5.28974,3311.0,3310.5,3.02062]
[1722361676049,3.02033,3310.9,3310.3,3.02084]
[1722361676258,5.28974,3311.0,3310.1,3.577906]
[1722361676490,3.02042,3310.8,3310.3,3.02082]
[1722361676854,3.02042,3310.8,3310.1,3.577906]
[1722361676855,3.02042,3310.8,3310.1,3.577876]
[1722361677097,3.0206,3310.6,3310.1,3.577876]
[1722361677297,3.02042,3310.8,3310.2,3.02094]
[1722361677298,6.04092,3310.8,3310.2,3.02094]
[1722361677603,3.02066,3310.6,3309.9,3.02117]
[1722361677768,3.02071,3310.5,3309.9,3.02122]
[1722361677978,3.02084,3310.4,3309.9,3.02122]
[1722361678969,3.02084,3310.4,3309.8,3.02132]
[1722361679573,3.02078,3310.4,3309.9,3.02119]
[1722361679784,6.04134,3310.6,3310.0,3.02114]
[1722361679987,3.02059,3310.7,3310.1,3.02101]
[1722361680388,3.02071,3310.5,3309.9,3.02118]
[1722361680561,3.02071,3310.5,3310.0,3.02113]
[1722361680760,3.0206,3310.6,3309.9,3.02117]
[1722361680971,3.0206,3310.6,3309.7,0.60784033]
[1722361680972,3.02073,3310.5,3310.0,3.02108]
[1722361681515,3.0208,3310.4,3309.8,3.02128]